[Event "Early-Titled-Tuesday-Blitz-February-20-2024"]
[Site "Chess.com"]
[Date "2024.02.20"]
[Round "10"]
[White "Arystanner"]
[Black "CristianS27"]
[Result "1-0"]
[WhiteElo "2761"]
[BlackElo "2561"]
[TimeControl "180+1"]
[EndTime "9:57:53 PST"]
[Termination "Arystanner won on time"]

1. e4 {[%clk 0:02:57.2]} 1... e5 {[%clk 0:03:00.2]} 2. Nf3 {[%clk 0:02:56.4]}
2... Nc6 {[%clk 0:03:00.8]} 3. Bc4 {[%clk 0:02:57.1]} 3... Nf6 {[%clk
0:03:00.7]} 4. d3 {[%clk 0:02:57.7]} 4... Bc5 {[%clk 0:03:01.3]} 5. O-O {[%clk
0:02:57.9]} 5... d6 {[%clk 0:03:01.7]} 6. Re1 {[%clk 0:02:58.4]} 6... a6 {[%clk
0:03:02.3]} 7. c3 {[%clk 0:02:58.9]} 7... Ba7 {[%clk 0:03:02.8]} 8. a4 {[%clk
0:02:59.3]} 8... h6 {[%clk 0:02:51.7]} 9. Nbd2 {[%clk 0:02:59.7]} 9... Nh5
{[%clk 0:02:49.8]} 10. Nf1 {[%clk 0:02:34.8]} 10... Qf6 {[%clk 0:02:48.3]} 11.
Be3 {[%clk 0:02:34.3]} 11... Nf4 {[%clk 0:02:48.1]} 12. Bxa7 {[%clk 0:02:30.3]}
12... Rxa7 {[%clk 0:02:45.8]} 13. Ne3 {[%clk 0:02:25.3]} 13... Ne7 {[%clk
0:02:41.7]} 14. g3 {[%clk 0:02:08.7]} 14... Nfg6 {[%clk 0:02:32.9]} 15. Kg2
{[%clk 0:02:06.9]} 15... h5 {[%clk 0:02:31.2]} 16. h4 {[%clk 0:02:06.7]} 16...
Bg4 {[%clk 0:02:28.1]} 17. Nxg4 {[%clk 0:02:06]} 17... hxg4 {[%clk 0:02:29]} 18.
Ng5 {[%clk 0:02:04.8]} 18... Nxh4+ {[%clk 0:02:11.9]} 19. gxh4 {[%clk
0:01:59.7]} 19... Rxh4 {[%clk 0:02:12.8]} 20. Bxf7+ {[%clk 0:01:47.7]} 20... Kf8
{[%clk 0:01:43.6]} 21. Qd2 {[%clk 0:01:47.6]} 21... Ng6 {[%clk 0:00:30.1]} 22.
Bxg6 {[%clk 0:01:46.3]} 22... Qxg6 {[%clk 0:00:30.3]} 23. Rh1 {[%clk 0:01:46.4]}
23... Rxh1 {[%clk 0:00:26.9]} 24. Rxh1 {[%clk 0:01:45.8]} 24... Ke7 {[%clk
0:00:27.5]} 25. Nh7 {[%clk 0:01:43.6]} 25... Ra8 {[%clk 0:00:24.1]} 26. c4
{[%clk 0:00:45.3]} 26... Rh8 {[%clk 0:00:20.9]} 27. Qa5 {[%clk 0:00:45]} 27...
Kd8 {[%clk 0:00:09.1]} 28. Qd5 {[%clk 0:00:44.7]} 28... Ke7 {[%clk 0:00:02.8]}
29. Qxb7 {[%clk 0:00:44.4]} 29... Kd7 {[%clk 0:00:02.8]} 30. c5 {[%clk
0:00:38.3]} 30... Rxh7 {[%clk 0:00:02.5]} 31. c6+ {[%clk 0:00:37.8]} 31... Kd8
{[%clk 0:00:01.9]} 32. Qb8+ {[%clk 0:00:37.9]} 32... Ke7 {[%clk 0:00:02.5]} 33.
Qxc7+ {[%clk 0:00:38.3]} 33... Ke8 {[%clk 0:00:03]} 34. Qd7+ {[%clk 0:00:38.4]}
34... Kf8 {[%clk 0:00:03.2]} 35. c7 {[%clk 0:00:38.8]} 35... Qxe4+ {[%clk
0:00:02]} 36. dxe4 {[%clk 0:00:38.8]} 1-0

[Event "Early-Titled-Tuesday-Blitz-February-20-2024"]
[Site "Chess.com"]
[Date "2024.02.20"]
[Round "10"]
[White "adotand"]
[Black "GM_Huschenbeth"]
[Result "1-0"]
[WhiteElo "2909"]
[BlackElo "2505"]
[TimeControl "180+1"]
[EndTime "9:57:53 PST"]
[Termination "adotand won by checkmate"]

1. d4 {[%clk 0:02:50.6]} 1... d5 {[%clk 0:02:59.7]} 2. Nf3 {[%clk 0:02:50.3]}
2... Nf6 {[%clk 0:02:59.5]} 3. Bf4 {[%clk 0:02:50.4]} 3... e6 {[%clk 0:02:56.4]}
4. e3 {[%clk 0:02:50.9]} 4... Bd6 {[%clk 0:02:56.5]} 5. Nbd2 {[%clk 0:02:48.6]}
5... O-O {[%clk 0:02:55.8]} 6. Bd3 {[%clk 0:02:48.2]} 6... c5 {[%clk 0:02:54.1]}
7. c3 {[%clk 0:02:48.8]} 7... Qc7 {[%clk 0:02:46.7]} 8. Bxd6 {[%clk 0:02:43.5]}
8... Qxd6 {[%clk 0:02:47.6]} 9. Ne5 {[%clk 0:02:44.2]} 9... b6 {[%clk
0:02:35.7]} 10. Qe2 {[%clk 0:02:40.1]} 10... a5 {[%clk 0:02:32.7]} 11. f4 {[%clk
0:02:30.8]} 11... Ba6 {[%clk 0:02:32.3]} 12. Bxa6 {[%clk 0:02:24.5]} 12... Rxa6
{[%clk 0:02:32.2]} 13. g4 {[%clk 0:02:24.2]} 13... Nfd7 {[%clk 0:02:21.4]} 14.
Nd3 {[%clk 0:02:16.5]} 14... b5 {[%clk 0:02:20.2]} 15. h4 {[%clk 0:02:15.1]}
15... b4 {[%clk 0:02:19.1]} 16. h5 {[%clk 0:02:12]} 16... Rb6 {[%clk 0:02:11]}
17. h6 {[%clk 0:02:11.9]} 17... g6 {[%clk 0:02:10.8]} 18. O-O {[%clk 0:02:05.3]}
18... f6 {[%clk 0:01:53.4]} 19. Rac1 {[%clk 0:01:56.1]} 19... Nc6 {[%clk
0:01:51.1]} 20. Qg2 {[%clk 0:01:50.3]} 20... bxc3 {[%clk 0:01:45.6]} 21. bxc3
{[%clk 0:01:50.5]} 21... c4 {[%clk 0:01:45.9]} 22. Nf2 {[%clk 0:01:48.8]} 22...
Rb2 {[%clk 0:01:45.6]} 23. Rcd1 {[%clk 0:01:49.2]} 23... Rxa2 {[%clk 0:01:39.7]}
24. f5 {[%clk 0:01:46]} 24... exf5 {[%clk 0:01:20.8]} 25. gxf5 {[%clk
0:01:46.2]} 25... g5 {[%clk 0:00:40]} 26. e4 {[%clk 0:01:46.5]} 26... Ne7 {[%clk
0:00:28.7]} 27. e5 {[%clk 0:01:36.4]} 27... fxe5 {[%clk 0:00:17.7]} 28. Qxg5+
{[%clk 0:01:36.4]} 28... Kf7 {[%clk 0:00:18.2]} 29. Qh5+ {[%clk 0:01:37]} 29...
Kg8 {[%clk 0:00:17.5]} 30. Ng4 {[%clk 0:01:25.2]} 30... Kh8 {[%clk 0:00:15.4]}
31. f6 {[%clk 0:01:22.1]} 31... Ng6 {[%clk 0:00:15.1]} 32. f7 {[%clk 0:01:22.8]}
32... exd4 {[%clk 0:00:13.4]} 33. Rf3 {[%clk 0:01:19.3]} 33... dxc3 {[%clk
0:00:12.7]} 34. Nf1 {[%clk 0:01:18.8]} 34... c2 {[%clk 0:00:11.3]} 35. Re1
{[%clk 0:01:19.2]} 35... Qb6+ {[%clk 0:00:07.5]} 36. Kh1 {[%clk 0:01:19]} 36...
Rb2 {[%clk 0:00:03.8]} 37. Qf5 {[%clk 0:01:09.1]} 37... Rb1 {[%clk 0:00:03.7]}
38. Qxc2 {[%clk 0:01:01.1]} 38... Rxe1 {[%clk 0:00:03.4]} 39. Qc3+ {[%clk
0:01:01.3]} 39... d4 {[%clk 0:00:03.1]} 40. Qxe1 {[%clk 0:01:01.8]} 40... Qc6
{[%clk 0:00:02.6]} 41. Nfh2 {[%clk 0:01:02.1]} 41... c3 {[%clk 0:00:02.9]} 42.
Qf2 {[%clk 0:01:01.5]} 42... Rxf7 {[%clk 0:00:03.1]} 43. Qxd4+ {[%clk
0:01:01.9]} 43... Kg8 {[%clk 0:00:02.7]} 44. Kg1 {[%clk 0:01:01.7]} 44... Rxf3
{[%clk 0:00:02.1]} 45. Qg7# {[%clk 0:01:01.7]} 1-0

[Event "Early-Titled-Tuesday-Blitz-February-20-2024"]
[Site "Chess.com"]
[Date "2024.02.20"]
[Round "10"]
[White "gpsji27"]
[Black "masnyszachistaaa"]
[Result "1-0"]
[WhiteElo "2352"]
[BlackElo "2560"]
[TimeControl "180+1"]
[EndTime "9:57:57 PST"]
[Termination "gpsji27 won on time"]

1. d4 {[%clk 0:02:45.5]} 1... f5 {[%clk 0:02:41.4]} 2. Nf3 {[%clk 0:02:46.4]}
2... Nf6 {[%clk 0:02:40.9]} 3. Bg5 {[%clk 0:02:34]} 3... Ne4 {[%clk 0:02:13.4]}
4. Bf4 {[%clk 0:02:27.7]} 4... b6 {[%clk 0:01:42.8]} 5. Nbd2 {[%clk 0:02:26.7]}
5... Bb7 {[%clk 0:01:42.6]} 6. Nxe4 {[%clk 0:02:11.7]} 6... Bxe4 {[%clk
0:01:43.5]} 7. e3 {[%clk 0:02:12.2]} 7... e6 {[%clk 0:01:41.4]} 8. Bd3 {[%clk
0:02:05.1]} 8... Be7 {[%clk 0:01:15.5]} 9. Bxe4 {[%clk 0:02:02.5]} 9... fxe4
{[%clk 0:01:16.4]} 10. Nd2 {[%clk 0:02:03.1]} 10... d5 {[%clk 0:01:16.6]} 11.
Be5 {[%clk 0:01:57.9]} 11... Bf6 {[%clk 0:01:07.7]} 12. Qh5+ {[%clk 0:01:45.9]}
12... g6 {[%clk 0:01:05]} 13. Qh3 {[%clk 0:01:45.6]} 13... Qe7 {[%clk
0:00:48.4]} 14. Bxf6 {[%clk 0:01:21.3]} 14... Qxf6 {[%clk 0:00:49.3]} 15. O-O
{[%clk 0:01:15.4]} 15... Nd7 {[%clk 0:00:17.5]} 16. f3 {[%clk 0:01:04.9]} 16...
exf3 {[%clk 0:00:18.4]} 17. Nxf3 {[%clk 0:01:04.2]} 17... Qe7 {[%clk 0:00:13.9]}
18. Rae1 {[%clk 0:00:56.8]} 18... O-O {[%clk 0:00:13.7]} 19. e4 {[%clk 0:00:53]}
19... dxe4 {[%clk 0:00:05.8]} 20. Rxe4 {[%clk 0:00:53.9]} 20... Rae8 {[%clk
0:00:05.6]} 21. Rfe1 {[%clk 0:00:49.7]} 21... Rf6 {[%clk 0:00:05.5]} 22. d5
{[%clk 0:00:49.6]} 22... Nc5 {[%clk 0:00:04.2]} 23. Re5 {[%clk 0:00:45]} 23...
a5 {[%clk 0:00:02.7]} 24. dxe6 {[%clk 0:00:38]} 24... Rxe6 {[%clk 0:00:02.3]}
25. Rxe6 {[%clk 0:00:38.4]} 25... Nxe6 {[%clk 0:00:03.2]} 26. Kh1 {[%clk
0:00:34.3]} 26... Qf7 {[%clk 0:00:02.5]} 27. Ne5 {[%clk 0:00:20.6]} 27... Qf6
{[%clk 0:00:01.2]} 28. g3 {[%clk 0:00:18.9]} 28... Qg7 {[%clk 0:00:01.4]} 29.
Ng4 {[%clk 0:00:18.7]} 1-0

[Event "Early-Titled-Tuesday-Blitz-February-20-2024"]
[Site "Chess.com"]
[Date "2024.02.20"]
[Round "10"]
[White "tusplingher"]
[Black "djano"]
[Result "0-1"]
[WhiteElo "2474"]
[BlackElo "2661"]
[TimeControl "180+1"]
[EndTime "9:57:58 PST"]
[Termination "djano won by resignation"]

1. e4 {[%clk 0:03:00.9]} 1... c5 {[%clk 0:02:59.6]} 2. Nf3 {[%clk 0:03:00.5]}
2... Nc6 {[%clk 0:02:58.5]} 3. Bb5 {[%clk 0:02:59.2]} 3... Qa5 {[%clk
0:02:58.7]} 4. Bxc6 {[%clk 0:02:58.6]} 4... bxc6 {[%clk 0:02:59.6]} 5. O-O
{[%clk 0:02:58.5]} 5... g6 {[%clk 0:02:59.8]} 6. c3 {[%clk 0:02:54.3]} 6... Bg7
{[%clk 0:02:58.9]} 7. d4 {[%clk 0:02:54.1]} 7... d6 {[%clk 0:02:58.5]} 8. Nbd2
{[%clk 0:02:51.3]} 8... Nf6 {[%clk 0:02:54.3]} 9. Nb3 {[%clk 0:02:50.2]} 9...
Qb6 {[%clk 0:02:43.6]} 10. e5 {[%clk 0:02:49.8]} 10... Nd5 {[%clk 0:02:39.6]}
11. exd6 {[%clk 0:02:48.9]} 11... exd6 {[%clk 0:02:34]} 12. dxc5 {[%clk
0:02:47.6]} 12... dxc5 {[%clk 0:02:33.3]} 13. Re1+ {[%clk 0:02:47.7]} 13... Be6
{[%clk 0:02:33.6]} 14. Ng5 {[%clk 0:02:44.8]} 14... O-O {[%clk 0:02:31.4]} 15.
Nxe6 {[%clk 0:02:40.3]} 15... fxe6 {[%clk 0:02:32.3]} 16. Be3 {[%clk 0:02:38.7]}
16... Nxe3 {[%clk 0:02:28]} 17. Rxe3 {[%clk 0:02:37.6]} 17... c4 {[%clk
0:02:28.6]} 18. Nd2 {[%clk 0:02:30.7]} 18... Qxb2 {[%clk 0:02:14.8]} 19. Rb1
{[%clk 0:02:18.3]} 19... Qxa2 {[%clk 0:02:13.5]} 20. Ra1 {[%clk 0:02:12.7]}
20... Qb2 {[%clk 0:02:12.5]} 21. Rb1 {[%clk 0:02:12.9]} 21... Qa3 {[%clk
0:02:12.5]} 22. Qe2 {[%clk 0:02:10.4]} 22... Qa2 {[%clk 0:01:56.6]} 23. Rb7
{[%clk 0:01:29.1]} 23... Rad8 {[%clk 0:01:46.8]} 24. Nf1 {[%clk 0:01:25.3]}
24... Qxe2 {[%clk 0:01:34.5]} 25. Rxe2 {[%clk 0:01:25.5]} 25... Rf7 {[%clk
0:01:33.1]} 26. Rb4 {[%clk 0:01:22.2]} 26... Bxc3 {[%clk 0:01:09]} 27. Rxc4
{[%clk 0:01:21]} 27... Bd4 {[%clk 0:01:05.9]} 28. Rxc6 {[%clk 0:00:54.1]} 28...
e5 {[%clk 0:01:03.9]} 29. Rcc2 {[%clk 0:00:48]} 29... a5 {[%clk 0:00:54.3]} 30.
Ra2 {[%clk 0:00:47.3]} 30... Ra8 {[%clk 0:00:52.9]} 31. Ng3 {[%clk 0:00:42.7]}
31... a4 {[%clk 0:00:49.7]} 32. Ne4 {[%clk 0:00:41.5]} 32... a3 {[%clk 0:00:48]}
33. g3 {[%clk 0:00:38.3]} 33... Rb7 {[%clk 0:00:43.7]} 34. Nd6 {[%clk
0:00:33.2]} 34... Rb1+ {[%clk 0:00:38.6]} 35. Kg2 {[%clk 0:00:32]} 35... Kg7
{[%clk 0:00:36.4]} 36. Nc4 {[%clk 0:00:29.5]} 36... Rb3 {[%clk 0:00:30.9]} 37.
Nxe5 {[%clk 0:00:20.1]} 37... Rb2 {[%clk 0:00:31.3]} 38. Nc4 {[%clk 0:00:14.4]}
38... Rxe2 {[%clk 0:00:30.1]} 39. Rxe2 {[%clk 0:00:11.1]} 39... a2 {[%clk
0:00:30.6]} 0-1

[Event "Early-Titled-Tuesday-Blitz-February-20-2024"]
[Site "Chess.com"]
[Date "2024.02.20"]
[Round "10"]
[White "Doublekk14"]
[Black "Shuvalov"]
[Result "0-1"]
[WhiteElo "2310"]
[BlackElo "2514"]
[TimeControl "180+1"]
[EndTime "9:57:58 PST"]
[Termination "Shuvalov won on time"]

1. c4 {[%clk 0:03:00.9]} 1... g6 {[%clk 0:02:58.5]} 2. Nc3 {[%clk 0:02:59.2]}
2... Bg7 {[%clk 0:02:58]} 3. Nf3 {[%clk 0:03:00.1]} 3... c5 {[%clk 0:02:55]} 4.
e3 {[%clk 0:02:59.9]} 4... Nc6 {[%clk 0:02:53.2]} 5. d4 {[%clk 0:02:58.8]} 5...
cxd4 {[%clk 0:02:53.2]} 6. exd4 {[%clk 0:02:58.8]} 6... Nf6 {[%clk 0:02:53.6]}
7. Be2 {[%clk 0:02:58.7]} 7... d5 {[%clk 0:02:53.2]} 8. O-O {[%clk 0:02:58]}
8... O-O {[%clk 0:02:52.3]} 9. h3 {[%clk 0:02:57.8]} 9... dxc4 {[%clk
0:02:44.5]} 10. Bxc4 {[%clk 0:02:57.6]} 10... b6 {[%clk 0:02:44]} 11. d5 {[%clk
0:02:41.6]} 11... Na5 {[%clk 0:02:41.1]} 12. Bb5 {[%clk 0:02:36.7]} 12... Bb7
{[%clk 0:02:31.2]} 13. Bg5 {[%clk 0:01:41.6]} 13... a6 {[%clk 0:02:19.9]} 14.
Be2 {[%clk 0:00:53.9]} 14... Nxd5 {[%clk 0:02:12.9]} 15. Nxd5 {[%clk 0:00:52.5]}
15... Qxd5 {[%clk 0:02:13.8]} 16. Qxd5 {[%clk 0:00:46]} 16... Bxd5 {[%clk
0:02:14.7]} 17. Rad1 {[%clk 0:00:43.5]} 17... Bxa2 {[%clk 0:02:06.8]} 18. b4
{[%clk 0:00:42.9]} 18... Nc6 {[%clk 0:02:02.1]} 19. b5 {[%clk 0:00:42.5]} 19...
axb5 {[%clk 0:01:59.4]} 20. Bxb5 {[%clk 0:00:42.4]} 20... Na7 {[%clk 0:01:58.2]}
21. Bd7 {[%clk 0:00:31]} 21... Bf6 {[%clk 0:01:40.6]} 22. Bxf6 {[%clk
0:00:20.9]} 22... exf6 {[%clk 0:01:41.5]} 23. Rd2 {[%clk 0:00:21]} 23... Be6
{[%clk 0:01:39]} 24. Bxe6 {[%clk 0:00:16.1]} 24... fxe6 {[%clk 0:01:39.9]} 25.
Rd6 {[%clk 0:00:15.8]} 25... Nc8 {[%clk 0:01:29]} 26. Rxe6 {[%clk 0:00:15.3]}
26... Ra7 {[%clk 0:01:20.8]} 27. Rc1 {[%clk 0:00:10.9]} 27... Rb7 {[%clk
0:01:16.8]} 28. Rec6 {[%clk 0:00:09.4]} 28... Ne7 {[%clk 0:01:15.9]} 29. Rc7
{[%clk 0:00:05.8]} 29... Rfb8 {[%clk 0:01:14.8]} 30. Rxb7 {[%clk 0:00:04.3]}
30... Rxb7 {[%clk 0:01:15]} 31. Nd4 {[%clk 0:00:05.2]} 31... b5 {[%clk
0:01:12.6]} 32. Rb1 {[%clk 0:00:04.5]} 32... b4 {[%clk 0:01:12.8]} 33. Rb3
{[%clk 0:00:03.6]} 33... Kf7 {[%clk 0:01:10.1]} 34. f3 {[%clk 0:00:03.5]} 34...
Nd5 {[%clk 0:01:10]} 35. Kf2 {[%clk 0:00:03.6]} 35... Rc7 {[%clk 0:01:09.9]} 36.
Ke2 {[%clk 0:00:02.7]} 36... Rc3 {[%clk 0:01:05]} 37. Rxc3 {[%clk 0:00:02.4]}
37... bxc3 {[%clk 0:01:05.1]} 38. Kd3 {[%clk 0:00:02.5]} 38... Nf4+ {[%clk
0:01:03.3]} 39. Kxc3 {[%clk 0:00:02.6]} 39... Nxg2 {[%clk 0:01:03.7]} 40. Ne2
{[%clk 0:00:02.9]} 40... Ke6 {[%clk 0:00:58.1]} 41. Kd3 {[%clk 0:00:03.2]} 41...
Kf5 {[%clk 0:00:57.9]} 42. Kd4 {[%clk 0:00:01]} 42... g5 {[%clk 0:00:56.6]} 43.
Kd5 {[%clk 0:00:01.2]} 43... Nf4+ {[%clk 0:00:56.3]} 0-1

[Event "Early-Titled-Tuesday-Blitz-February-20-2024"]
[Site "Chess.com"]
[Date "2024.02.20"]
[Round "10"]
[White "N4700000"]
[Black "Viktor_Poddubnyi"]
[Result "1-0"]
[WhiteElo "2457"]
[BlackElo "2293"]
[TimeControl "180+1"]
[EndTime "9:58:01 PST"]
[Termination "N4700000 won by resignation"]

1. e4 {[%clk 0:03:00.9]} 1... g6 {[%clk 0:02:58.8]} 2. d4 {[%clk 0:02:59.6]}
2... Bg7 {[%clk 0:02:59.3]} 3. Bc4 {[%clk 0:02:59]} 3... c6 {[%clk 0:02:58.7]}
4. Nc3 {[%clk 0:02:54.9]} 4... Nf6 {[%clk 0:02:57]} 5. e5 {[%clk 0:02:53.1]}
5... Ng8 {[%clk 0:02:55.1]} 6. Qf3 {[%clk 0:02:40.3]} 6... e6 {[%clk 0:02:48.3]}
7. Ne4 {[%clk 0:02:34.7]} 7... f5 {[%clk 0:02:43.7]} 8. Nd6+ {[%clk 0:02:23.3]}
8... Kf8 {[%clk 0:02:44.1]} 9. h4 {[%clk 0:02:10.4]} 9... h6 {[%clk 0:02:37.7]}
10. h5 {[%clk 0:02:01.7]} 10... g5 {[%clk 0:02:26.6]} 11. g4 {[%clk 0:02:00.8]}
11... f4 {[%clk 0:02:18.7]} 12. Bxf4 {[%clk 0:01:45.5]} 12... gxf4 {[%clk
0:02:14.9]} 13. Qxf4+ {[%clk 0:01:45.6]} 13... Nf6 {[%clk 0:02:13.5]} 14. exf6
{[%clk 0:01:15.6]} 14... Qxf6 {[%clk 0:02:11.8]} 15. Qxf6+ {[%clk 0:01:09.4]}
15... Bxf6 {[%clk 0:02:12.7]} 16. Nxc8 {[%clk 0:01:08.1]} 16... d5 {[%clk
0:01:55.2]} 17. Bd3 {[%clk 0:01:06]} 17... Bxd4 {[%clk 0:01:46.6]} 18. Nd6
{[%clk 0:00:52.2]} 18... Bxb2 {[%clk 0:01:37.2]} 19. Rb1 {[%clk 0:00:50.7]}
19... Bc3+ {[%clk 0:01:37.7]} 20. Kf1 {[%clk 0:00:48.5]} 20... b6 {[%clk
0:01:38.3]} 21. Bg6 {[%clk 0:00:29.2]} 21... Ke7 {[%clk 0:01:24.9]} 22. Nf7
{[%clk 0:00:26.2]} 22... Nd7 {[%clk 0:01:05.1]} 23. Nxh8 {[%clk 0:00:24.5]}
23... Rxh8 {[%clk 0:01:03.6]} 24. Rh3 {[%clk 0:00:22.2]} 24... Bf6 {[%clk
0:01:02]} 25. Ra3 {[%clk 0:00:19.2]} 25... a5 {[%clk 0:01:01.1]} 26. Nf3 {[%clk
0:00:17.9]} 26... Ra8 {[%clk 0:00:56]} 27. Re3 {[%clk 0:00:16.8]} 27... Kd6
{[%clk 0:00:53.6]} 28. Rbe1 {[%clk 0:00:16.5]} 28... e5 {[%clk 0:00:52.6]} 29.
Bf5 {[%clk 0:00:15.9]} 29... e4 {[%clk 0:00:40.9]} 30. Bxe4 {[%clk 0:00:15.4]}
30... dxe4 {[%clk 0:00:40.5]} 31. Rxe4 {[%clk 0:00:14.3]} 31... Nc5 {[%clk
0:00:38.2]} 32. Rf4 {[%clk 0:00:14]} 32... Bc3 {[%clk 0:00:31.4]} 33. Re3 {[%clk
0:00:13.6]} 33... Bg7 {[%clk 0:00:29.4]} 34. Nd4 {[%clk 0:00:13]} 34... a4
{[%clk 0:00:20.6]} 35. Nf5+ {[%clk 0:00:13]} 1-0

[Event "Early-Titled-Tuesday-Blitz-February-20-2024"]
[Site "Chess.com"]
[Date "2024.02.20"]
[Round "10"]
[White "pr1105"]
[Black "lluiss"]
[Result "1-0"]
[WhiteElo "2360"]
[BlackElo "2161"]
[TimeControl "180+1"]
[EndTime "9:58:02 PST"]
[Termination "pr1105 won on time"]

1. e4 {[%clk 0:02:58.2]} 1... e6 {[%clk 0:02:58.7]} 2. d4 {[%clk 0:02:56.2]}
2... d5 {[%clk 0:02:58.3]} 3. Nc3 {[%clk 0:02:56.2]} 3... Nf6 {[%clk 0:02:57.4]}
4. e5 {[%clk 0:02:51.3]} 4... Nfd7 {[%clk 0:02:56.6]} 5. f4 {[%clk 0:02:47.1]}
5... g6 {[%clk 0:02:54.2]} 6. Nf3 {[%clk 0:02:46.3]} 6... h5 {[%clk 0:02:54.2]}
7. Be3 {[%clk 0:02:46.7]} 7... Be7 {[%clk 0:02:54.1]} 8. Qd2 {[%clk 0:02:45.5]}
8... b6 {[%clk 0:02:53.7]} 9. O-O-O {[%clk 0:02:19]} 9... Ba6 {[%clk 0:02:52.4]}
10. Bxa6 {[%clk 0:02:13.3]} 10... Nxa6 {[%clk 0:02:53.3]} 11. g3 {[%clk
0:02:12.4]} 11... c5 {[%clk 0:02:42.7]} 12. h3 {[%clk 0:02:11.8]} 12... Nb4
{[%clk 0:02:31.2]} 13. g4 {[%clk 0:02:04.9]} 13... Nc6 {[%clk 0:02:19.9]} 14. f5
{[%clk 0:01:53.1]} 14... cxd4 {[%clk 0:02:19.2]} 15. Bxd4 {[%clk 0:01:12.3]}
15... Nxd4 {[%clk 0:01:44.9]} 16. Qxd4 {[%clk 0:01:13.2]} 16... Nc5 {[%clk
0:01:08.4]} 17. fxg6 {[%clk 0:00:44]} 17... fxg6 {[%clk 0:01:07.6]} 18. gxh5
{[%clk 0:00:43.4]} 18... Rxh5 {[%clk 0:00:50.4]} 19. h4 {[%clk 0:00:34.7]} 19...
Qd7 {[%clk 0:00:49.6]} 20. Rhg1 {[%clk 0:00:34.5]} 20... O-O-O {[%clk 0:00:46]}
21. Rxg6 {[%clk 0:00:34.1]} 21... Bxh4 {[%clk 0:00:41.8]} 22. Nxh4 {[%clk
0:00:31.9]} 22... Qh7 {[%clk 0:00:13.7]} 23. Rg4 {[%clk 0:00:20.6]} 23... Rh8
{[%clk 0:00:08.6]} 24. Nf3 {[%clk 0:00:16.2]} 24... Rh1 {[%clk 0:00:08.4]} 25.
b3 {[%clk 0:00:13.4]} 25... Qh3 {[%clk 0:00:04]} 26. Rxh1 {[%clk 0:00:03.2]}
26... Qxh1+ {[%clk 0:00:03.2]} 27. Ng1 {[%clk 0:00:03.5]} 1-0

[Event "Early-Titled-Tuesday-Blitz-February-20-2024"]
[Site "Chess.com"]
[Date "2024.02.20"]
[Round "10"]
[White "Makswolf200817"]
[Black "ketster"]
[Result "1-0"]
[WhiteElo "2759"]
[BlackElo "2595"]
[TimeControl "180+1"]
[EndTime "9:58:10 PST"]
[Termination "Makswolf200817 won on time"]

1. d4 {[%clk 0:03:00.9]} 1... d5 {[%clk 0:02:56]} 2. c4 {[%clk 0:02:28.2]} 2...
e5 {[%clk 0:02:48.1]} 3. dxe5 {[%clk 0:02:09.7]} 3... Ne7 {[%clk 0:02:47.2]} 4.
e4 {[%clk 0:01:45.8]} 4... dxe4 {[%clk 0:02:18.5]} 5. Qxd8+ {[%clk 0:01:33.3]}
5... Kxd8 {[%clk 0:02:19.4]} 6. Nc3 {[%clk 0:01:33.9]} 6... Bf5 {[%clk
0:02:10.3]} 7. Nge2 {[%clk 0:01:23.1]} 7... Nbc6 {[%clk 0:02:05.9]} 8. Ng3
{[%clk 0:01:23.3]} 8... Be6 {[%clk 0:02:00.8]} 9. Ngxe4 {[%clk 0:01:11]} 9...
Nxe5 {[%clk 0:02:00.4]} 10. Ng5 {[%clk 0:01:09.2]} 10... h6 {[%clk 0:01:24.7]}
11. Nxe6+ {[%clk 0:01:08.3]} 11... fxe6 {[%clk 0:01:25.6]} 12. Bf4 {[%clk
0:01:07.5]} 12... N7c6 {[%clk 0:01:23]} 13. O-O-O+ {[%clk 0:01:07.1]} 13... Ke8
{[%clk 0:01:11.6]} 14. Nb5 {[%clk 0:01:04.2]} 14... Rc8 {[%clk 0:01:02.6]} 15.
Nxa7 {[%clk 0:01:04.4]} 15... Ra8 {[%clk 0:00:49]} 16. Nxc6 {[%clk 0:01:04.1]}
16... Nxc6 {[%clk 0:00:47.9]} 17. a3 {[%clk 0:01:04]} 17... Bc5 {[%clk
0:00:33.5]} 18. Bxc7 {[%clk 0:00:55.9]} 18... Bxf2 {[%clk 0:00:32.7]} 19. Be2
{[%clk 0:00:55.7]} 19... Be3+ {[%clk 0:00:29.2]} 20. Kb1 {[%clk 0:00:55.3]}
20... Rc8 {[%clk 0:00:22]} 21. Bd6 {[%clk 0:00:55.3]} 21... Bd4 {[%clk
0:00:18.4]} 22. Bf3 {[%clk 0:00:52.6]} 22... Bf6 {[%clk 0:00:18.7]} 23. Bh5+
{[%clk 0:00:50.9]} 23... Kd7 {[%clk 0:00:17.1]} 24. b4 {[%clk 0:00:43.7]} 24...
Nd4 {[%clk 0:00:16.2]} 25. Bc5 {[%clk 0:00:42.3]} 25... Rxc5 {[%clk 0:00:11.4]}
26. bxc5 {[%clk 0:00:43.2]} 26... Rc8 {[%clk 0:00:11]} 27. Rxd4+ {[%clk
0:00:42.3]} 27... Bxd4 {[%clk 0:00:09.5]} 28. Rd1 {[%clk 0:00:42.9]} 28... e5
{[%clk 0:00:06.2]} 29. Bg4+ {[%clk 0:00:42.8]} 29... Kc7 {[%clk 0:00:06.8]} 30.
Bxc8 {[%clk 0:00:43.7]} 30... Kxc8 {[%clk 0:00:07.7]} 31. Kc2 {[%clk 0:00:38.8]}
31... Kc7 {[%clk 0:00:08]} 32. Kd3 {[%clk 0:00:39.3]} 32... Kc6 {[%clk
0:00:08.2]} 33. Rb1 {[%clk 0:00:37.6]} 33... Bxc5 {[%clk 0:00:08.2]} 34. a4
{[%clk 0:00:37.9]} 34... b6 {[%clk 0:00:07.6]} 35. Ke4 {[%clk 0:00:37.7]} 35...
Bd4 {[%clk 0:00:06.7]} 36. Rb5 {[%clk 0:00:38.4]} 36... Kd6 {[%clk 0:00:05.9]}
37. h4 {[%clk 0:00:36.7]} 37... h5 {[%clk 0:00:02.3]} 38. a5 {[%clk 0:00:33.8]}
38... bxa5 {[%clk 0:00:02.3]} 39. Rxa5 {[%clk 0:00:34.7]} 39... Kc6 {[%clk
0:00:02.4]} 40. Rb5 {[%clk 0:00:34.8]} 40... g6 {[%clk 0:00:02.1]} 41. Rxe5
{[%clk 0:00:33.8]} 41... Bxe5 {[%clk 0:00:01.9]} 42. Kxe5 {[%clk 0:00:34.7]} 1-0